[Event "Late-Titled-Tuesday-Blitz-January-23-2024"]
[Site "Chess.com"]
[Date "2024.01.23"]
[Round "10"]
[White "OPQRC"]
[Black "pr1105"]
[Result "0-1"]
[WhiteElo "2534"]
[BlackElo "2356"]
[TimeControl "180+1"]
[EndTime "15:52:48 PST"]
[Termination "pr1105 won on time"]

1. e4 {[%clk 0:02:55.3]} 1... e5 {[%clk 0:03:00.2]} 2. Nf3 {[%clk 0:02:55.2]}
2... Nc6 {[%clk 0:03:00.7]} 3. d4 {[%clk 0:02:54.7]} 3... exd4 {[%clk
0:03:01.6]} 4. Nxd4 {[%clk 0:02:55.5]} 4... Nf6 {[%clk 0:03:01.9]} 5. Nc3 {[%clk
0:02:55.3]} 5... Bb4 {[%clk 0:03:01.9]} 6. Nxc6 {[%clk 0:02:53.5]} 6... bxc6
{[%clk 0:03:02.8]} 7. Bd3 {[%clk 0:02:52.7]} 7... O-O {[%clk 0:03:02.8]} 8. O-O
{[%clk 0:02:51.7]} 8... d5 {[%clk 0:03:03.5]} 9. exd5 {[%clk 0:02:51.7]} 9...
Bg4 {[%clk 0:03:03.6]} 10. Be2 {[%clk 0:02:46.6]} 10... Bxe2 {[%clk 0:02:55.3]}
11. Nxe2 {[%clk 0:02:44.9]} 11... cxd5 {[%clk 0:02:54.7]} 12. c3 {[%clk
0:02:42.2]} 12... Bd6 {[%clk 0:02:54.4]} 13. Bg5 {[%clk 0:02:38.9]} 13... Bxh2+
{[%clk 0:02:38.1]} 14. Kxh2 {[%clk 0:02:38.6]} 14... Ng4+ {[%clk 0:02:38.1]} 15.
Kg1 {[%clk 0:02:30.4]} 15... Qxg5 {[%clk 0:02:38.2]} 16. Qd4 {[%clk 0:02:28.7]}
16... Rae8 {[%clk 0:02:18.4]} 17. Rfe1 {[%clk 0:02:27.4]} 17... Re4 {[%clk
0:02:12.8]} 18. Qxa7 {[%clk 0:02:18.8]} 18... Qh4 {[%clk 0:01:43.1]} 19. Ng3
{[%clk 0:02:15.5]} 19... Qh2+ {[%clk 0:01:08.9]} 20. Kf1 {[%clk 0:02:15.4]}
20... Rf4 {[%clk 0:01:09.5]} 21. Ke2 {[%clk 0:02:09.9]} 21... Qxg2 {[%clk
0:00:49.1]} 22. Rf1 {[%clk 0:02:06.7]} 22... Re8+ {[%clk 0:00:48.8]} 23. Kd2
{[%clk 0:02:03.2]} 23... Nxf2 {[%clk 0:00:45.2]} 24. Kc2 {[%clk 0:01:03.4]}
24... Ne4+ {[%clk 0:00:34.8]} 25. Kb3 {[%clk 0:00:58]} 25... Nd2+ {[%clk
0:00:27.2]} 26. Ka3 {[%clk 0:00:52.5]} 26... Nc4+ {[%clk 0:00:20.2]} 27. Kb4
{[%clk 0:00:52.6]} 27... Qxb2+ {[%clk 0:00:14.4]} 28. Kc5 {[%clk 0:00:52.8]}
28... Rxf1 {[%clk 0:00:11.3]} 29. Rxf1 {[%clk 0:00:47.8]} 29... Qxc3 {[%clk
0:00:11.8]} 30. Ne2 {[%clk 0:00:41.7]} 30... Qe3+ {[%clk 0:00:11.3]} 31. Nd4
{[%clk 0:00:42.3]} 31... g6 {[%clk 0:00:09.4]} 32. Qxc7 {[%clk 0:00:38.8]} 32...
Ne5 {[%clk 0:00:09.6]} 33. Kxd5 {[%clk 0:00:33.2]} 33... h5 {[%clk 0:00:06.2]}
34. a4 {[%clk 0:00:29.5]} 34... h4 {[%clk 0:00:06]} 35. a5 {[%clk 0:00:29.5]}
35... h3 {[%clk 0:00:06.6]} 36. a6 {[%clk 0:00:23.1]} 36... h2 {[%clk
0:00:07.2]} 37. a7 {[%clk 0:00:20.9]} 37... Qd3 {[%clk 0:00:07.8]} 38. Re1
{[%clk 0:00:06.3]} 38... h1=Q+ {[%clk 0:00:05.9]} 39. Rxh1 {[%clk 0:00:05.7]}
39... Nf3 {[%clk 0:00:06.7]} 40. a8=Q {[%clk 0:00:01.8]} 40... Qxd4+ {[%clk
0:00:05.8]} 41. Kc6 {[%clk 0:00:01.7]} 41... Rxa8 {[%clk 0:00:06.1]} 42. Rc1
{[%clk 0:00:01.4]} 42... Qe4+ {[%clk 0:00:06.1]} 43. Kb6 {[%clk 0:00:01.6]}
43... Re8 {[%clk 0:00:06.1]} 44. Qc6 {[%clk 0:00:01.1]} 44... Nd4 {[%clk
0:00:05.3]} 0-1

[Event "Late-Titled-Tuesday-Blitz-January-23-2024"]
[Site "Chess.com"]
[Date "2024.01.23"]
[Round "10"]
[White "FontVella8"]
[Black "toninhojit"]
[Result "1-0"]
[WhiteElo "2754"]
[BlackElo "2525"]
[TimeControl "180+1"]
[EndTime "15:52:53 PST"]
[Termination "FontVella8 won on time"]

1. Nf3 {[%clk 0:03:00.9]} 1... c5 {[%clk 0:02:51.8]} 2. b3 {[%clk 0:03:01]} 2...
d5 {[%clk 0:02:50.8]} 3. Bb2 {[%clk 0:03:01.6]} 3... Nf6 {[%clk 0:02:48.8]} 4.
g3 {[%clk 0:03:01.9]} 4... g6 {[%clk 0:02:49.3]} 5. Bg2 {[%clk 0:03:02.5]} 5...
Bg7 {[%clk 0:02:49.9]} 6. O-O {[%clk 0:03:03.2]} 6... O-O {[%clk 0:02:50.3]} 7.
d3 {[%clk 0:03:01.7]} 7... Nc6 {[%clk 0:02:50.1]} 8. Nbd2 {[%clk 0:03:01.8]}
8... Qc7 {[%clk 0:02:49.5]} 9. e4 {[%clk 0:03:01.4]} 9... d4 {[%clk 0:02:46.5]}
10. a4 {[%clk 0:03:00.9]} 10... e5 {[%clk 0:02:45.3]} 11. Nc4 {[%clk 0:03:01]}
11... Ne8 {[%clk 0:02:45.3]} 12. Nh4 {[%clk 0:02:58.4]} 12... Bf6 {[%clk
0:02:39]} 13. Bc1 {[%clk 0:02:55.8]} 13... Nd6 {[%clk 0:02:36.3]} 14. f4 {[%clk
0:02:53.8]} 14... Nxc4 {[%clk 0:02:28.5]} 15. bxc4 {[%clk 0:02:53.1]} 15... exf4
{[%clk 0:02:25.1]} 16. Bxf4 {[%clk 0:02:51.4]} 16... Be5 {[%clk 0:02:23.3]} 17.
Qd2 {[%clk 0:02:48.7]} 17... Bd7 {[%clk 0:02:17.8]} 18. Rf2 {[%clk 0:02:42.3]}
18... f6 {[%clk 0:02:08.6]} 19. Raf1 {[%clk 0:02:34.3]} 19... Bxf4 {[%clk
0:02:00.8]} 20. Rxf4 {[%clk 0:02:21.8]} 20... Qe5 {[%clk 0:01:56.3]} 21. Nf3
{[%clk 0:02:16]} 21... Qe7 {[%clk 0:01:55.6]} 22. h4 {[%clk 0:01:58.3]} 22...
Ne5 {[%clk 0:01:52.4]} 23. Nxe5 {[%clk 0:01:56.7]} 23... fxe5 {[%clk 0:01:51.1]}
24. Rxf8+ {[%clk 0:01:52.5]} 24... Rxf8 {[%clk 0:01:52]} 25. Rxf8+ {[%clk
0:01:52.4]} 25... Kxf8 {[%clk 0:01:51.4]} 26. Qa5 {[%clk 0:01:52.8]} 26... a6
{[%clk 0:01:40.2]} 27. Kh2 {[%clk 0:01:49.2]} 27... Kf7 {[%clk 0:01:21.8]} 28.
Kg1 {[%clk 0:01:08.2]} 28... h6 {[%clk 0:01:19.5]} 29. Bf3 {[%clk 0:01:00.8]}
29... Bc6 {[%clk 0:01:10]} 30. Qd2 {[%clk 0:00:57.5]} 30... Kg7 {[%clk
0:01:08.8]} 31. a5 {[%clk 0:00:57.4]} 31... Qf6 {[%clk 0:01:04]} 32. Kg2 {[%clk
0:00:56.3]} 32... g5 {[%clk 0:00:49.1]} 33. hxg5 {[%clk 0:00:53.2]} 33... Qxg5
{[%clk 0:00:47.5]} 34. Qxg5+ {[%clk 0:00:45.4]} 34... hxg5 {[%clk 0:00:48.4]}
35. Bg4 {[%clk 0:00:46.1]} 35... Kf6 {[%clk 0:00:44.4]} 36. Bc8 {[%clk
0:00:43.1]} 36... Ke7 {[%clk 0:00:39.7]} 37. Kh3 {[%clk 0:00:18.7]} 37... Kd8
{[%clk 0:00:39]} 38. Bg4 {[%clk 0:00:19]} 38... Bd7 {[%clk 0:00:14.8]} 39. Bf5
{[%clk 0:00:06.3]} 39... Ba4 {[%clk 0:00:06.2]} 40. Kg4 {[%clk 0:00:04.5]} 40...
Bxc2 {[%clk 0:00:06.5]} 41. Kxg5 {[%clk 0:00:02.7]} 41... Bxd3 {[%clk 0:00:07]}
42. Kf6 {[%clk 0:00:03.5]} 42... Bxc4 {[%clk 0:00:06.6]} 43. Kxe5 {[%clk
0:00:03.9]} 43... d3 {[%clk 0:00:07]} 44. Bg4 {[%clk 0:00:01.7]} 44... d2 {[%clk
0:00:05.6]} 45. Bd1 {[%clk 0:00:01.1]} 1-0

[Event "Late-Titled-Tuesday-Blitz-January-23-2024"]
[Site "Chess.com"]
[Date "2024.01.23"]
[Round "10"]
[White "DenLaz"]
[Black "Fandorine"]
[Result "1-0"]
[WhiteElo "3093"]
[BlackElo "2982"]
[TimeControl "180+1"]
[EndTime "15:52:54 PST"]
[Termination "DenLaz won by checkmate"]

1. d4 {[%clk 0:03:00.1]} 1... Nf6 {[%clk 0:03:00.7]} 2. c4 {[%clk 0:03:00.5]}
2... g6 {[%clk 0:03:01.3]} 3. g3 {[%clk 0:03:01.1]} 3... Bg7 {[%clk 0:03:01.2]}
4. Bg2 {[%clk 0:03:01.8]} 4... O-O {[%clk 0:03:01.9]} 5. Nc3 {[%clk 0:03:02.5]}
5... d6 {[%clk 0:03:02.6]} 6. Nf3 {[%clk 0:03:03.2]} 6... c5 {[%clk 0:03:03]} 7.
dxc5 {[%clk 0:02:59.9]} 7... dxc5 {[%clk 0:03:03.2]} 8. Qxd8 {[%clk 0:02:59.8]}
8... Rxd8 {[%clk 0:03:04.1]} 9. Be3 {[%clk 0:03:00.1]} 9... Nc6 {[%clk
0:02:46.8]} 10. Bxc5 {[%clk 0:02:59.1]} 10... Be6 {[%clk 0:02:44.6]} 11. Rc1
{[%clk 0:02:52.2]} 11... Bxc4 {[%clk 0:02:39.1]} 12. Nd2 {[%clk 0:02:50.8]}
12... Bd5 {[%clk 0:02:30.3]} 13. Nxd5 {[%clk 0:02:32.6]} 13... Nxd5 {[%clk
0:02:31.2]} 14. Ba3 {[%clk 0:02:18.2]} 14... Rac8 {[%clk 0:02:28.3]} 15. Bxd5
{[%clk 0:01:35]} 15... Rxd5 {[%clk 0:02:27]} 16. Nb3 {[%clk 0:01:35.6]} 16... e6
{[%clk 0:01:42.6]} 17. O-O {[%clk 0:01:33.8]} 17... h5 {[%clk 0:01:42.4]} 18.
Rfd1 {[%clk 0:01:27.7]} 18... Rxd1+ {[%clk 0:01:32.3]} 19. Rxd1 {[%clk
0:01:27.7]} 19... Ne5 {[%clk 0:01:32.8]} 20. Bc5 {[%clk 0:01:10.9]} 20... b6
{[%clk 0:01:26]} 21. Bd4 {[%clk 0:01:10.7]} 21... Rc2 {[%clk 0:01:04.9]} 22. Rd2
{[%clk 0:01:05.4]} 22... Rc4 {[%clk 0:01:05.5]} 23. Kg2 {[%clk 0:00:59.6]} 23...
Ng4 {[%clk 0:00:50.8]} 24. h3 {[%clk 0:00:53.8]} 24... Nf6 {[%clk 0:00:48]} 25.
Kf3 {[%clk 0:00:40]} 25... Nd5 {[%clk 0:00:27.8]} 26. Bxg7 {[%clk 0:00:38.8]}
26... Kxg7 {[%clk 0:00:28.7]} 27. e3 {[%clk 0:00:37.9]} 27... Nf6 {[%clk
0:00:23.7]} 28. Nd4 {[%clk 0:00:31.6]} 28... e5 {[%clk 0:00:15.8]} 29. Rc2
{[%clk 0:00:31.9]} 29... Rxc2 {[%clk 0:00:10.9]} 30. Nxc2 {[%clk 0:00:32.8]}
30... Kf8 {[%clk 0:00:10.9]} 31. Nb4 {[%clk 0:00:28.8]} 31... g5 {[%clk
0:00:06.4]} 32. Nc6 {[%clk 0:00:22.1]} 32... e4+ {[%clk 0:00:06.6]} 33. Ke2
{[%clk 0:00:22.5]} 33... a5 {[%clk 0:00:07.2]} 34. Kd2 {[%clk 0:00:22.7]} 34...
Ke8 {[%clk 0:00:06.6]} 35. Kc3 {[%clk 0:00:22.9]} 35... Kd7 {[%clk 0:00:07.2]}
36. Ne5+ {[%clk 0:00:22.9]} 36... Ke6 {[%clk 0:00:06.8]} 37. Kd4 {[%clk
0:00:22.5]} 37... b5 {[%clk 0:00:03.7]} 38. Nc6 {[%clk 0:00:21.6]} 38... a4
{[%clk 0:00:04.4]} 39. Nb4 {[%clk 0:00:20.1]} 39... Kf5 {[%clk 0:00:03.8]} 40.
Nc6 {[%clk 0:00:19]} 40... Nd7 {[%clk 0:00:03.6]} 41. Ne7+ {[%clk 0:00:18.6]}
41... Ke6 {[%clk 0:00:03.3]} 42. Nd5 {[%clk 0:00:19.3]} 42... f5 {[%clk
0:00:02.4]} 43. Nc7+ {[%clk 0:00:19.2]} 43... Kf6 {[%clk 0:00:03]} 44. Nxb5
{[%clk 0:00:19.4]} 44... Ne5 {[%clk 0:00:03.9]} 45. Nc3 {[%clk 0:00:12.8]} 45...
Nd3 {[%clk 0:00:04.4]} 46. Nxa4 {[%clk 0:00:12.7]} 46... Nxf2 {[%clk 0:00:04.9]}
47. b4 {[%clk 0:00:13.4]} 47... Nxh3 {[%clk 0:00:04.9]} 48. b5 {[%clk
0:00:13.5]} 48... h4 {[%clk 0:00:03.6]} 49. gxh4 {[%clk 0:00:12.7]} 49... g4
{[%clk 0:00:04]} 50. b6 {[%clk 0:00:12.5]} 50... g3 {[%clk 0:00:04.6]} 51. b7
{[%clk 0:00:13.2]} 51... g2 {[%clk 0:00:04.8]} 52. b8=Q {[%clk 0:00:13.9]} 52...
g1=Q {[%clk 0:00:05.5]} 53. Qf8+ {[%clk 0:00:14.6]} 53... Ke6 {[%clk 0:00:05.8]}
54. Nc5# {[%clk 0:00:14.6]} 1-0

[Event "Late-Titled-Tuesday-Blitz-January-23-2024"]
[Site "Chess.com"]
[Date "2024.01.23"]
[Round "10"]
[White "GothamChess"]
[Black "annasargsyan_m"]
[Result "1-0"]
[WhiteElo "2759"]
[BlackElo "2534"]
[TimeControl "180+1"]
[EndTime "15:53:07 PST"]
[Termination "GothamChess won by resignation"]

1. e4 {[%clk 0:03:00.9]} 1... e5 {[%clk 0:02:59]} 2. Nc3 {[%clk 0:02:51.5]} 2...
Nc6 {[%clk 0:02:56.1]} 3. Bc4 {[%clk 0:02:51.4]} 3... Nf6 {[%clk 0:02:55]} 4. d3
{[%clk 0:02:51.7]} 4... Bc5 {[%clk 0:02:52.6]} 5. f4 {[%clk 0:02:51.5]} 5... d6
{[%clk 0:02:52.7]} 6. Nf3 {[%clk 0:02:52.2]} 6... O-O {[%clk 0:02:53]} 7. f5
{[%clk 0:02:47.3]} 7... Nd4 {[%clk 0:02:51.7]} 8. Bg5 {[%clk 0:02:42.8]} 8... c6
{[%clk 0:02:51]} 9. Bb3 {[%clk 0:02:36.1]} 9... a5 {[%clk 0:02:42.4]} 10. a4
{[%clk 0:01:31.8]} 10... Nxb3 {[%clk 0:02:23.7]} 11. cxb3 {[%clk 0:01:31.7]}
11... Qb6 {[%clk 0:02:23.3]} 12. Nd2 {[%clk 0:01:23.4]} 12... Nd7 {[%clk
0:02:11.3]} 13. Nc4 {[%clk 0:01:04.9]} 13... Qc7 {[%clk 0:02:11.2]} 14. f6
{[%clk 0:01:02.1]} 14... Nxf6 {[%clk 0:02:05.3]} 15. Bxf6 {[%clk 0:00:56.5]}
15... gxf6 {[%clk 0:02:06.2]} 16. Qf3 {[%clk 0:00:55]} 16... Qe7 {[%clk
0:02:02.7]} 17. Ne3 {[%clk 0:00:52.2]} 17... Kh8 {[%clk 0:01:57]} 18. O-O-O
{[%clk 0:00:37.9]} 18... Rg8 {[%clk 0:01:56.8]} 19. g3 {[%clk 0:00:33.8]} 19...
Be6 {[%clk 0:01:54.9]} 20. Kc2 {[%clk 0:00:29.4]} 20... b5 {[%clk 0:01:54.8]}
21. Rhf1 {[%clk 0:00:25.2]} 21... bxa4 {[%clk 0:01:52.3]} 22. bxa4 {[%clk
0:00:21.6]} 22... Rab8 {[%clk 0:01:49.8]} 23. Nc4 {[%clk 0:00:20.5]} 23... Bg4
{[%clk 0:01:36.9]} 24. Qxf6+ {[%clk 0:00:18.3]} 24... Qxf6 {[%clk 0:01:37.8]}
25. Rxf6 {[%clk 0:00:18.3]} 25... Bxd1+ {[%clk 0:01:38.7]} 26. Nxd1 {[%clk
0:00:16.1]} 26... Kg7 {[%clk 0:01:32.5]} 27. Rf3 {[%clk 0:00:15.5]} 27... f6
{[%clk 0:01:22.9]} 28. Nxa5 {[%clk 0:00:10.5]} 28... Ra8 {[%clk 0:01:22.4]} 29.
Nxc6 {[%clk 0:00:10.7]} 29... Rxa4 {[%clk 0:01:19.5]} 30. Nc3 {[%clk 0:00:07.3]}
30... Ra1 {[%clk 0:01:17.3]} 31. Ne7 {[%clk 0:00:07.7]} 31... Rb8 {[%clk
0:01:11.3]} 32. Ned5 {[%clk 0:00:04.7]} 32... Rf8 {[%clk 0:01:09.1]} 33. Nc7
{[%clk 0:00:02.2]} 33... Kg6 {[%clk 0:01:03.3]} 34. N7d5 {[%clk 0:00:02.1]}
34... Rh1 {[%clk 0:01:02.3]} 35. h4 {[%clk 0:00:01.7]} 35... Rh2+ {[%clk
0:01:01.6]} 36. Kb3 {[%clk 0:00:01.8]} 36... Rb8+ {[%clk 0:01:00.6]} 37. Kc4
{[%clk 0:00:02.4]} 37... Rhxb2 {[%clk 0:00:58.5]} 38. Nxf6 {[%clk 0:00:02.1]}
38... Kg7 {[%clk 0:00:59.2]} 39. Nh5+ {[%clk 0:00:02]} 39... Kg6 {[%clk
0:00:59.1]} 40. Nf6 {[%clk 0:00:02.5]} 40... R2b4+ {[%clk 0:00:54.1]} 41. Kd5
{[%clk 0:00:02.8]} 41... Rd4+ {[%clk 0:00:53.4]} 42. Ke6 {[%clk 0:00:03.3]}
42... Rf8 {[%clk 0:00:38.2]} 43. Ncd5 {[%clk 0:00:03.2]} 43... Kg7 {[%clk
0:00:32.1]} 44. Nh5+ {[%clk 0:00:02.6]} 44... Kh6 {[%clk 0:00:26.6]} 45. Rxf8
{[%clk 0:00:02.7]} 45... Kxh5 {[%clk 0:00:27.2]} 46. Rf3 {[%clk 0:00:02.1]}
46... Kg4 {[%clk 0:00:26.1]} 47. Rf7 {[%clk 0:00:02.3]} 47... h5 {[%clk
0:00:23.3]} 48. Rg7+ {[%clk 0:00:02.5]} 48... Kh3 {[%clk 0:00:22.8]} 49. Nf6
{[%clk 0:00:03]} 49... Rxd3 {[%clk 0:00:20.7]} 50. Nxh5 {[%clk 0:00:03.7]} 50...
Re3 {[%clk 0:00:20]} 51. Kd5 {[%clk 0:00:03.8]} 51... Rd3+ {[%clk 0:00:20]} 52.
Ke6 {[%clk 0:00:04.4]} 52... Re3 {[%clk 0:00:20.4]} 53. Nf6 {[%clk 0:00:04.8]}
53... Rxg3 {[%clk 0:00:14]} 54. Rxg3+ {[%clk 0:00:04.5]} 54... Kxg3 {[%clk
0:00:14.9]} 55. h5 {[%clk 0:00:05.4]} 55... Be3 {[%clk 0:00:15.6]} 56. Kxd6
{[%clk 0:00:04.6]} 56... Bf4 {[%clk 0:00:14.4]} 57. Ke6 {[%clk 0:00:03.7]} 57...
Kf3 {[%clk 0:00:14.3]} 58. Kf5 {[%clk 0:00:04]} 58... Ke3 {[%clk 0:00:13.7]} 59.
Ng4+ {[%clk 0:00:04.4]} 59... Kd4 {[%clk 0:00:14]} 60. h6 {[%clk 0:00:05]} 60...
Bxh6 {[%clk 0:00:12.8]} 61. Nxh6 {[%clk 0:00:05.9]} 1-0

[Event "Late-Titled-Tuesday-Blitz-January-23-2024"]
[Site "Chess.com"]
[Date "2024.01.23"]
[Round "10"]
[White "FairChess_on_YouTube"]
[Black "Hikaru"]
[Result "1/2-1/2"]
[WhiteElo "3098"]
[BlackElo "3278"]
[TimeControl "180+1"]
[EndTime "15:53:15 PST"]
[Termination "Game drawn - insufficient material"]

1. d4 {[%clk 0:03:00.9]} 1... Nf6 {[%clk 0:02:59.7]} 2. c4 {[%clk 0:03:01]} 2...
b6 {[%clk 0:02:59.6]} 3. Nf3 {[%clk 0:03:00.2]} 3... Bb7 {[%clk 0:02:56.8]} 4.
Nc3 {[%clk 0:03:00]} 4... d5 {[%clk 0:02:57.1]} 5. Bf4 {[%clk 0:02:44.8]} 5...
e6 {[%clk 0:02:52.4]} 6. e3 {[%clk 0:02:43.9]} 6... a6 {[%clk 0:02:46.4]} 7. Rc1
{[%clk 0:02:40.3]} 7... Nbd7 {[%clk 0:02:31.3]} 8. cxd5 {[%clk 0:02:39.4]} 8...
exd5 {[%clk 0:02:30.5]} 9. Bd3 {[%clk 0:02:39.4]} 9... Be7 {[%clk 0:02:27.4]}
10. O-O {[%clk 0:02:37.1]} 10... O-O {[%clk 0:02:27.5]} 11. a4 {[%clk
0:02:23.9]} 11... c5 {[%clk 0:02:25.9]} 12. b3 {[%clk 0:02:23.9]} 12... Re8
{[%clk 0:02:20]} 13. Bf5 {[%clk 0:02:21.4]} 13... Nf8 {[%clk 0:02:11.1]} 14. Ne5
{[%clk 0:02:21]} 14... Bd6 {[%clk 0:02:02.2]} 15. Qf3 {[%clk 0:02:15.6]} 15...
Ne6 {[%clk 0:01:57.3]} 16. Bxe6 {[%clk 0:02:03.2]} 16... Rxe6 {[%clk 0:01:58.2]}
17. Nd3 {[%clk 0:02:00.3]} 17... Bf8 {[%clk 0:01:20.8]} 18. Bg5 {[%clk 0:01:50]}
18... h6 {[%clk 0:01:17.4]} 19. Bh4 {[%clk 0:01:50.2]} 19... g5 {[%clk
0:01:15.3]} 20. Bg3 {[%clk 0:01:50.5]} 20... Ne4 {[%clk 0:01:15.8]} 21. Rfd1
{[%clk 0:01:41]} 21... Bg7 {[%clk 0:01:15.9]} 22. Be5 {[%clk 0:01:32.4]} 22...
f6 {[%clk 0:01:15.4]} 23. Bg3 {[%clk 0:01:32.5]} 23... cxd4 {[%clk 0:01:15.8]}
24. exd4 {[%clk 0:01:21]} 24... Rc8 {[%clk 0:01:14.6]} 25. Qf5 {[%clk
0:01:10.1]} 25... Qd7 {[%clk 0:00:59.3]} 26. Nxe4 {[%clk 0:01:10]} 26... dxe4
{[%clk 0:00:54.4]} 27. Rxc8+ {[%clk 0:01:01.8]} 27... Bxc8 {[%clk 0:00:52.4]}
28. Nb4 {[%clk 0:00:50.6]} 28... a5 {[%clk 0:00:43.5]} 29. d5 {[%clk 0:00:43.9]}
29... Re8 {[%clk 0:00:37.9]} 30. Qxd7 {[%clk 0:00:44]} 30... Bxd7 {[%clk
0:00:38.8]} 31. Nc6 {[%clk 0:00:44.4]} 31... Bf8 {[%clk 0:00:37.8]} 32. Bc7
{[%clk 0:00:37.7]} 32... Bc5 {[%clk 0:00:35.4]} 33. Nb8 {[%clk 0:00:36.2]} 33...
Bg4 {[%clk 0:00:35.4]} 34. Re1 {[%clk 0:00:24.8]} 34... e3 {[%clk 0:00:34.3]}
35. fxe3 {[%clk 0:00:23]} 35... Rxe3 {[%clk 0:00:35.2]} 36. Rxe3 {[%clk
0:00:21.7]} 36... Bxe3+ {[%clk 0:00:36.1]} 37. Kf1 {[%clk 0:00:20.5]} 37... Kf7
{[%clk 0:00:36.6]} 38. d6 {[%clk 0:00:18.6]} 38... Ke8 {[%clk 0:00:35.2]} 39. h3
{[%clk 0:00:17.6]} 39... Be6 {[%clk 0:00:33.2]} 40. Ke2 {[%clk 0:00:17.9]} 40...
Bg1 {[%clk 0:00:31]} 41. Kd3 {[%clk 0:00:12.7]} 41... f5 {[%clk 0:00:31.2]} 42.
g3 {[%clk 0:00:12.5]} 42... h5 {[%clk 0:00:26.4]} 43. h4 {[%clk 0:00:11.3]}
43... gxh4 {[%clk 0:00:26.4]} 44. gxh4 {[%clk 0:00:11.8]} 44... Bf2 {[%clk
0:00:26.7]} 45. Ke2 {[%clk 0:00:09.4]} 45... Bc5 {[%clk 0:00:24.3]} 46. Kf3
{[%clk 0:00:08.7]} 46... Bd4 {[%clk 0:00:19.2]} 47. Kf4 {[%clk 0:00:08.3]} 47...
Bf6 {[%clk 0:00:19.9]} 48. Bxb6 {[%clk 0:00:05.4]} 48... Bxh4 {[%clk 0:00:20.5]}
49. Bxa5 {[%clk 0:00:04.9]} 49... Bf6 {[%clk 0:00:21.1]} 50. d7+ {[%clk
0:00:05.1]} 50... Bxd7 {[%clk 0:00:20.4]} 51. Nxd7 {[%clk 0:00:06]} 51... Kxd7
{[%clk 0:00:21.2]} 52. Kxf5 {[%clk 0:00:06.7]} 52... Be7 {[%clk 0:00:21.6]} 53.
Bd2 {[%clk 0:00:06.6]} 53... Kc6 {[%clk 0:00:22]} 54. Ke4 {[%clk 0:00:06.4]}
54... h4 {[%clk 0:00:21.4]} 55. Kf3 {[%clk 0:00:06.2]} 55... Kc5 {[%clk
0:00:20.6]} 56. Kg4 {[%clk 0:00:06.1]} 56... Kd4 {[%clk 0:00:14.2]} 57. Be1
{[%clk 0:00:06.3]} 57... Kd3 {[%clk 0:00:09.5]} 58. Bxh4 {[%clk 0:00:06]} 58...
Bb4 {[%clk 0:00:09.8]} 59. Kf3 {[%clk 0:00:03.6]} 59... Kc2 {[%clk 0:00:09.6]}
60. Be7 {[%clk 0:00:03.6]} 60... Kxb3 {[%clk 0:00:09.9]} 61. Ke4 {[%clk
0:00:03.7]} 61... Kxa4 {[%clk 0:00:10.3]} 1/2-1/2

[Event "Late-Titled-Tuesday-Blitz-January-23-2024"]
[Site "Chess.com"]
[Date "2024.01.23"]
[Round "10"]
[White "Roedor"]
[Black "jjbolanos"]
[Result "1/2-1/2"]
[WhiteElo "2328"]
[BlackElo "2171"]
[TimeControl "180+1"]
[EndTime "15:53:15 PST"]
[Termination "Game drawn by repetition"]

1. c4 {[%clk 0:02:57.8]} 1... Nf6 {[%clk 0:02:59.9]} 2. g3 {[%clk 0:02:55.8]}
2... e6 {[%clk 0:03:00.2]} 3. Bg2 {[%clk 0:02:55.9]} 3... d5 {[%clk 0:03:00.9]}
4. Nf3 {[%clk 0:02:56.1]} 4... Be7 {[%clk 0:03:01.6]} 5. O-O {[%clk 0:02:56.2]}
5... O-O {[%clk 0:03:02.3]} 6. d4 {[%clk 0:02:56.5]} 6... dxc4 {[%clk
0:03:02.9]} 7. Qc2 {[%clk 0:02:56.4]} 7... a6 {[%clk 0:03:02.9]} 8. a4 {[%clk
0:02:56.7]} 8... Bd7 {[%clk 0:03:02.9]} 9. Qxc4 {[%clk 0:02:56.8]} 9... Bc6
{[%clk 0:03:03.3]} 10. Bg5 {[%clk 0:02:57]} 10... Bd5 {[%clk 0:02:59.8]} 11. Qc1
{[%clk 0:02:56.6]} 11... h6 {[%clk 0:02:43.1]} 12. Bxf6 {[%clk 0:02:54.7]} 12...
Bxf6 {[%clk 0:02:44]} 13. Rd1 {[%clk 0:02:55]} 13... Bxf3 {[%clk 0:02:35.7]} 14.
Bxf3 {[%clk 0:02:55.9]} 14... c6 {[%clk 0:02:35.8]} 15. Kg2 {[%clk 0:02:54.3]}
15... a5 {[%clk 0:02:31.1]} 16. Nc3 {[%clk 0:02:53]} 16... Na6 {[%clk
0:02:31.1]} 17. Ne4 {[%clk 0:02:50.9]} 17... Nb4 {[%clk 0:02:18.6]} 18. e3
{[%clk 0:02:45.6]} 18... Rc8 {[%clk 0:01:59.4]} 19. h4 {[%clk 0:02:43.7]} 19...
b5 {[%clk 0:01:57.8]} 20. Qd2 {[%clk 0:02:10.1]} 20... Be7 {[%clk 0:01:34.6]}
21. h5 {[%clk 0:02:02.5]} 21... Qb6 {[%clk 0:00:38.9]} 22. Nc3 {[%clk
0:01:49.6]} 22... Rfd8 {[%clk 0:00:36.7]} 23. Qe2 {[%clk 0:01:46.6]} 23... Bf6
{[%clk 0:00:12.7]} 24. axb5 {[%clk 0:01:41.5]} 24... c5 {[%clk 0:00:12.1]} 25.
Ne4 {[%clk 0:01:34.9]} 25... cxd4 {[%clk 0:00:11.8]} 26. Nxf6+ {[%clk 0:01:35]}
26... gxf6 {[%clk 0:00:11.1]} 27. exd4 {[%clk 0:01:33.5]} 27... Rxd4 {[%clk
0:00:11.2]} 28. Rxd4 {[%clk 0:01:33.4]} 28... Qxd4 {[%clk 0:00:11.2]} 29. Rxa5
{[%clk 0:01:30.5]} 29... Rc2 {[%clk 0:00:11.8]} 30. Ra8+ {[%clk 0:00:56]} 30...
Kg7 {[%clk 0:00:10.9]} 31. Qf1 {[%clk 0:00:32.1]} 31... Nd3 {[%clk 0:00:10.7]}
32. Be2 {[%clk 0:00:29.8]} 32... Qe4+ {[%clk 0:00:11.1]} 33. Bf3 {[%clk
0:00:28.3]} 33... Qd4 {[%clk 0:00:10.7]} 34. Be2 {[%clk 0:00:28.3]} 34... Ne5
{[%clk 0:00:07.2]} 35. Ra3 {[%clk 0:00:21.1]} 35... Qe4+ {[%clk 0:00:06.7]} 36.
Bf3 {[%clk 0:00:21.5]} 36... Nxf3 {[%clk 0:00:05]} 37. Rxf3 {[%clk 0:00:21.7]}
37... Rxb2 {[%clk 0:00:05.2]} 38. Qd3 {[%clk 0:00:16]} 38... Qxd3 {[%clk
0:00:04]} 39. Rxd3 {[%clk 0:00:16.9]} 39... Rxb5 {[%clk 0:00:04.6]} 40. g4
{[%clk 0:00:16.7]} 40... f5 {[%clk 0:00:04.8]} 41. f3 {[%clk 0:00:13.4]} 41...
f4 {[%clk 0:00:05.4]} 42. Rd7 {[%clk 0:00:12.5]} 42... Kf6 {[%clk 0:00:05.6]}
43. Rd8 {[%clk 0:00:12.3]} 43... Rb2+ {[%clk 0:00:06.2]} 44. Kh3 {[%clk
0:00:11.9]} 44... Rf2 {[%clk 0:00:06.5]} 45. Kh4 {[%clk 0:00:11.6]} 45... Rxf3
{[%clk 0:00:06.6]} 46. Rh8 {[%clk 0:00:12.2]} 46... Kg7 {[%clk 0:00:05.7]} 47.
Re8 {[%clk 0:00:11.9]} 47... Rf1 {[%clk 0:00:05.9]} 48. g5 {[%clk 0:00:12]}
48... Rh1+ {[%clk 0:00:06.4]} 49. Kg4 {[%clk 0:00:12.3]} 49... Rg1+ {[%clk
0:00:06.1]} 50. Kxf4 {[%clk 0:00:12.7]} 50... Rxg5 {[%clk 0:00:06.1]} 51. Ra8
{[%clk 0:00:10.3]} 51... Rxh5 {[%clk 0:00:06.7]} 52. Kg4 {[%clk 0:00:10.8]}
52... Rb5 {[%clk 0:00:07.2]} 53. Kh4 {[%clk 0:00:09.9]} 53... Rb4+ {[%clk
0:00:07]} 54. Kh5 {[%clk 0:00:08.8]} 54... Rb5+ {[%clk 0:00:07.6]} 55. Kh4
{[%clk 0:00:08.7]} 55... Kf6 {[%clk 0:00:08.2]} 56. Rh8 {[%clk 0:00:07.5]} 56...
Rb4+ {[%clk 0:00:06.7]} 57. Kh5 {[%clk 0:00:07.6]} 57... Rb5+ {[%clk 0:00:07.2]}
58. Kh4 {[%clk 0:00:07.8]} 58... Kg7 {[%clk 0:00:06.5]} 59. Ra8 {[%clk
0:00:07.8]} 1/2-1/2